Cogmind - Beta 14 @@@ ROGUE MODE // 2024.09.21 @ 01:54:43 Player: Dull Result: Destroyed by as-42647 with Assembled Heavy Rifle Performance ------------- Evolutions (0) 0 Regions Visited (4) 800 Robots Destroyed (29) 145 Value Destroyed (588) 588 Prototype IDs (24) 480 Alien Tech Used (0) 0 Bonus (321) 321 TOTAL SCORE: 2334 Bonus ------- Follower Combat Kills 21 Aligned with FarCom 300 Cogmind --------- Core Integrity 0/250 Matter 239/300 Energy 100/100 System Corruption 0% Temperature Cool (10) Movement Core (1400) Ox27 Location -9/Mines Parts ------- > --- POWER (1) -------- (None) > --- PROPULSION (2) --- (None) > --- UTILITY (2) ------ Huge Storage Unit Core Shielding > --- WEAPON (2) ------- Autogun > --- INVENTORY (25) --- Improved Treads Improved Treads Improved Treads Improved Treads Improved Heat Sink Large Storage Unit High-capacity Storage Unit Huge Storage Unit Large Matter Pod (150) Sensor Array Signal Interpreter Improved Terrain Scanner Targeting Computer ECM Suite Hacking Suite Hacking Suite Tractor Beam Assault Rifle Grenade Launcher Mining Laser Longsword +1 Peak State ------------ > --- POWER ------------ Ion Engine > --- PROPULSION ------- Light Treads Light Treads > --- UTILITY ---------- Large Storage Unit Improved Terrain Scanner > --- WEAPON ----------- Autogun Autogun > --- INVENTORY -------- Ion Engine Improved Treads Improved Treads Improved Treads Improved Treads Wheel Improved Heat Sink Autogun Autogun Grenade Launcher Grenade Launcher Mining Laser [Rating: 13] Favorites ----------- Power Ion Engine Engine Ion Engine Propulsion Light Treads Treads Light Treads Leg Aluminum Leg Flight Unit Improved Flight Unit Utility Huge Storage Unit Device Improved Terrain Scanner Storage Huge Storage Unit Protection Core Shielding Weapon Autogun Energy Gun Small Laser Ballistic Gun Autogun Launcher Grenade Launcher Build | -11 -10 -10 -10 -9 ------- Run | Yrd Mat Min Exi Min Slots Evolved . | . . . . . Power . | . . . . . Propulsion . | . . . . . Utility . | . . . . . Weapon . | . . . . . Parts Attached 22 | 2 16 . . 4 Power 1 | . . . . 1 Engine 1 | . . . . 1 Core . | . . . . . Reactor . | . . . . . Propulsion 8 | . 8 . . . Treads 7 | . 7 . . . Leg . | . . . . . Wheel . | . . . . . Hover . | . . . . . Flight 1 | . 1 . . . Utility 5 | 1 4 . . . Device 1 | 1 . . . . Storage 2 | . 2 . . . Processor . | . . . . . Hackware . | . . . . . Protection 2 | . 2 . . . Artifact . | . . . . . Weapon 8 | 1 4 . . 3 Energy Gun . | . . . . . Energy Cannon . | . . . . . Ballistic Gun 6 | 1 3 . . 2 Ballistic Cannon . | . . . . . Launcher 2 | . 1 . . 1 Special Weapon . | . . . . . Impact Weapon . | . . . . . Slashing Weapon . | . . . . . Piercing Weapon . | . . . . . Special Melee Weapon . | . . . . . Unidentified Prototypes 1 | . 1 . . . Parts Lost 8 | . 1 . . 7 Power 2 | . . . . 2 Propulsion 1 | . . . . 1 Utility 1 | . 1 . . . Weapon 4 | . . . . 4 Highest Loss Streak 7 | . 1 . . 7 To Critical Strikes . | . . . . . Average Slot Usage (%) 99 | . 99 100 100 99 Engine 14 | . 14 14 14 14 Treads 27 | . 27 28 28 27 Storage 14 | . 14 14 14 14 Protection 13 | . 12 14 14 14 Ballistic Gun 27 | . 27 28 28 27 Peak Build Rating 13 | 9 13 12 13 13 Average Rating 12 | 7 11 12 12 12 On Entrance 10 | 6 9 12 12 13 Naked Turns . | . . . . . Heaviest Build 94 | 14 94 92 92 92 Greatest Support 40 | 20 40 40 40 40 Greatest Overweight (x) 2 | . 2 2 2 2 Average Overweight (x) 1 | . 1 2 2 2 Largest Inventory Capacity 25 | 8 25 25 25 25 Average Capacity 23 | 8 22 25 25 25 Most Carried 25 | 6 25 25 25 25 Average Carried 22 | 5 20 25 24 24 Final Capacity 25 | 8 25 25 25 25 Final Carried 25 | 4 25 25 25 21 Class Distribution -------------------- 100% | Mutant Dominant Class ---------------- Mutant | -10/Materials Mutant | -10/Mines Mutant | -10/Exiles Mutant | -9/Mines Resources | -11 -10 -10 -10 -9 ----------- Run | Yrd Mat Min Exi Min Matter Collected 1079 | 220 431 210 210 8 Remotely . | . . . . . Salvage Created 883 | 102 605 149 . 27 Parts 62 | 6 51 5 . . Haulers Intercepted 2 | . 2 . . . Recyclers Shooed 3 | 1 1 . . 1 Parts Field Recycled . | . . . . . Retrieved Matter . | . . . . . Parts Self-Destructed . | . . . . . Prevented . | . . . . . Kills | -11 -10 -10 -10 -9 ------- Run | Yrd Mat Min Exi Min Combat Hostiles Destroyed 19 | . 16 2 . 1 Guns 18 | . 16 2 . . AOE 1 | . . . . 1 Classes Destroyed 8 | 2 5 . . 1 Tunneler 1 | 1 . . . . Hauler 2 | . 2 . . . Recycler 2 | 1 . 1 . . Operator 2 | . 2 . . . Watcher 3 | . 3 . . . Swarmer 9 | . 9 . . . Grunt 9 | . 7 2 . . Demolisher 1 | . . . . 1 Best Kill Streak 4 | 2 4 2 . 1 Combat Bots Only 3 | . 3 2 . 1 Max Kills in Single Turn 2 | 1 2 1 . 1 Gunslinging 1 | . 1 . . . Exploded 1 | . . . . 1 Melee . | . . . . . Uniques/NPCs Destroyed . | . . . . . Combat | -11 -10 -10 -10 -9 -------- Run | Yrd Mat Min Exi Min Hostile Shots Fired 109 | . 52 7 . 50 Missed 25 | . 11 3 . 11 Damage Taken 1372 | . 395 47 . 930 Core 258 | . 79 11 . 168 Absorbed by Shields . | . . . . . Redirected to Shielding 38 | . 4 2 . 32 Regen/Repaired (Parts) 49 | . 49 . . . Core Remaining (%) 100 | 100 . . . . Volleys Fired 82 | 6 63 5 . 8 Largest 2 | 2 2 2 . 2 Hottest 80 | 80 46 46 . 46 Shots Fired 160 | 12 125 10 . 13 Gun 157 | 12 124 10 . 11 Cannon . | . . . . . Launcher 3 | . 1 . . 2 Special . | . . . . . Kinetic 145 | . 124 10 . 11 Thermal 6 | 6 . . . . Explosive 3 | . 1 . . 2 Electromagnetic 6 | 6 . . . . Robot Hit Streak 5 | 2 5 5 . 3 Robot Miss Streak 4 | 1 4 1 . 4 Penetration Max . | . . . . . Secondary Targets 6 | . 5 1 . . Max Gunslinging Chain 1 | . 1 1 . . Shots Hit Robots 82 | 7 61 7 . 7 Core Hits 41 | 3 27 5 . 6 Critical Kills . | . . . . . Critical Parts Destroyed . | . . . . . Critical Strikes . | . . . . . Melee Attacks . | . . . . . Impact . | . . . . . Slashing . | . . . . . Piercing . | . . . . . Sneak Attacks . | . . . . . Combat Hostiles . | . . . . . Follow-up Attacks . | . . . . . Damage Inflicted 1379 | 86 1013 112 . 168 Guns 1332 | 86 1013 112 . 121 Cannons . | . . . . . Explosions 30 | . . . . 30 Melee . | . . . . . Ramming 17 | . . . . 17 Kinetic 1246 | . 1013 112 . 121 Thermal 32 | 32 . . . . Explosive 30 | . . . . 30 Electromagnetic 54 | 54 . . . . Impact . | . . . . . Slashing . | . . . . . Piercing . | . . . . . Highest Corruption . | . . . . . Average Corruption . | . . . . . Corruption Purged . | . . . . . Corruption Blocked . | . . . . . Overload Shots . | . . . . . Overflow Damage . | . . . . . Projectiles . | . . . . . Explosions . | . . . . . Melee . | . . . . . Knockbacks 1 | . . . . 1 Impact 1 | . . . . 1 Kinetic . | . . . . . Secondary . | . . . . . Self-Inflicted Damage 14 | . 14 . . . Shots 1 | . 1 . . . Rammed 1 | . . . . 1 Targets Rammed 1 | . . . . 1 Kicked . | . . . . . Crushed . | . . . . . Highest Temperature 92 | 92 36 27 . 32 Average Temperature 14 | 49 9 11 . 9 Received Heat Transfer 187 | . 57 30 . 100 Siege Activations . | . . . . . Robots Corrupted . | . . . . . Combat Hostiles . | . . . . . Parts Fried . | . . . . . Impact Corruptions . | . . . . . Robots Melted . | . . . . . Combat Hostiles . | . . . . . Parts Melted . | . . . . . Heat Transferred 75 | 75 . . . . Parts Sabotaged . | . . . . . Parts Stolen . | . . . . . Parts Stripped . | . . . . . Power Chain Reactions . | . . . . . Alert | -11 -10 -10 -10 -9 ------- Run | Yrd Mat Min Exi Min Peak Influence 135 | 10 135 93 . 91 Initial 38 | . 6 38 . . Average 38 | 6 61 12 . 26 Maximum Alert Level . | . . . . . Low Security (%) 100 | 100 100 100 . 100 Level 1 . | . . . . . Level 2 . | . . . . . Level 3 . | . . . . . Level 4 . | . . . . . Level 5 . | . . . . . High Security . | . . . . . Max Security . | . . . . . Squads Dispatched 3 | . 2 . . 1 Investigation . | . . . . . Extermination . | . . . . . Reinforcement 3 | . 2 . . 1 Assault . | . . . . . Garrison . | . . . . . Intercept . | . . . . . Searches Triggered . | . . . . . Construction Impeded 1 | . . . . 1 Haulers Reinforced . | . . . . . Active Scanning Responses . | . . . . . Cargo Convoy Interrupts . | . . . . . Stealth | -11 -10 -10 -10 -9 --------- Run | Yrd Mat Min Exi Min Distress Signals 2 | . 2 . . . Communications Jammed . | . . . . . Distress Signals . | . . . . . Times Spotted 61 | . 37 2 . 22 Peak Tracking Total 13 | . 4 2 . 13 Tactical Retreats 1 | . 1 . . . Traps | -11 -10 -10 -10 -9 ------- Run | Yrd Mat Min Exi Min Traps Triggered 1 | . 1 . . . Indirectly . | . . . . . Trap Hack Attempts . | . . . . . Triggered . | . . . . . Disarmed . | . . . . . Reprogrammed . | . . . . . Reused . | . . . . . Traps Extracted . | . . . . . Installed . | . . . . . Triggered . | . . . . . Machines | -11 -10 -10 -10 -9 ---------- Run | Yrd Mat Min Exi Min Machines Disabled 1 | . 1 . . . Max in Single Turn 1 | . 1 . . . Machines Repaired . | . . . . . Machines Dismantled . | . . . . . Machines Sabotaged . | . . . . . Overloaded Fab Kills . | . . . . . Hacking | -11 -10 -10 -10 -9 --------- Run | Yrd Mat Min Exi Min Machines Accessed 14 | . 9 . 5 . Terminals 6 | . 6 . . . Fabricators . | . . . . . Repair Stations 1 | . 1 . . . Recycling Units 2 | . 2 . . . Scanalyzers . | . . . . . Garrison Access . | . . . . . Total Hacks 58 | . 30 . 28 . Successful 46 | . 18 . 28 . Failed 12 | . 12 . . . Catastrophic . | . . . . . Database Lockouts . | . . . . . Manual 28 | . 27 . 1 . Terminals 23 | . 23 . . . Fabricators . | . . . . . Repair Stations 2 | . 2 . . . Recycling Units 5 | . 5 . . . Scanalyzers . | . . . . . Garrison Access . | . . . . . Terminal Hacks 33 | . 5 . 28 . Record 27 | . . . 27 . Part Schematic 2 | . 2 . . . Robot Analysis 2 | . 2 . . . Locate Traps 1 | . 1 . . . Derelict Proto ID Bank 1 | . . . 1 . Fabricator Hacks . | . . . . . Repair Station Hacks 2 | . 2 . . . Scan Component 1 | . 1 . . . Repair 1 | . 1 . . . Recycling Unit Hacks . | . . . . . Scanalyzer . | . . . . . Garrison Access Hacks . | . . . . . Unauthorized Hacks 11 | . 11 . . . Terminals 6 | . 6 . . . Botnet 6 | . 6 . . . Fabricators . | . . . . . Repair Stations . | . . . . . Recycling Units 5 | . 5 . . . Monitor 1 | . 1 . . . Reject 2 | . 2 . . . Mask 2 | . 2 . . . Scanalyzers . | . . . . . Garrison Access . | . . . . . Data Cores Recovered . | . . . . . Used . | . . . . . Hacking Detections 9 | . 9 . . . Full Trace Events . | . . . . . Feedback Events . | . . . . . Feedback Blocked . | . . . . . Robot Schematics Acquired . | . . . . . Robots Built . | . . . . . Authchips . | . . . . . Time . | . . . . . Total Robot Build Rating . | . . . . . Part Schematics Acquired 2 | . 2 . . . Parts Built . | . . . . . Authchips . | . . . . . Time . | . . . . . Total Part Build Rating . | . . . . . Parts Repaired 1 | . 1 . . . Time 26 | . 26 . . . Parts Recycled . | . . . . . Recycled Matter . | . . . . . Retrieved Matter . | . . . . . Retrieved Components . | . . . . . Parts Scanalyzed . | . . . . . Part Schematics Acquired . | . . . . . Parts Damaged . | . . . . . Bothacking | -11 -10 -10 -10 -9 ------------ Run | Yrd Mat Min Exi Min Used RIF Installer . | . . . . . Robots Hacked . | . . . . . Non-combat . | . . . . . Combat . | . . . . . Robot Hacks Applied . | . . . . . Relay Couplers Released . | . . . . . Fabnet Peak Effective % . | . . . . . Robots Rewired . | . . . . . Allies Hacked . | . . . . . Hacks Repelled . | . . . . . Allies | -11 -10 -10 -10 -9 -------- Run | Yrd Mat Min Exi Min Total Allies 5 | . . . . 5 Largest Group 5 | . . . . 5 Highest-Rated Group 89 | . . . . 89 Highest-Rated Ally 31 | . . . . 31 Total Orders . | . . . . . Ally Attacks 25 | . . . . 25 Total Damage 267 | . . . . 267 Kills 3 | . . . . 3 Allies Corrupted . | . . . . . Allies Melted . | . . . . . Intel | -11 -10 -10 -10 -9 ------- Run | Yrd Mat Min Exi Min Robot Analysis Total 2 | . 2 . . . Derelict Logs Recovered 1 | . . 1 . . Drone Launches . | . . . . . Drone Recoveries . | . . . . . Exploration | -11 -10 -10 -10 -9 ------------- Run | Yrd Mat Min Exi Min Turns Passed 6513 | 41 2682 2031 1201 558 Spaces Moved 2070 | 16 913 601 375 165 Core . | . . . . . Treads 2018 | . 877 601 375 165 Legs 52 | 16 36 . . . Wheels . | . . . . . Hover . | . . . . . Flight . | . . . . . Fastest Speed 120 | 120 120 320 320 320 Average Speed 291 | 120 258 320 320 320 Slowest Speed 320 | 120 320 320 320 320 Overloaded Moves . | . . . . . Propulsion Burnouts . | . . . . . Robots Hopped . | . . . . . Cave-ins Triggered . | . . . . . Exploration Rate (%) 62 | 3 98 99 72 38 Regions Visited 4 Branch Regions 3 Pre-discovered Areas 1 | . . . 1 . Known Exits Taken 1 | . . . 1 . Unknown Exits Taken 3 | 1 1 1 . . Scrap Searched 1 | . . 1 . . Spaces Dug 6 | . 6 . . . Terrain Destroyed 6 | . 6 . . . Melee . | . . . . . Projectile . | . . . . . AOE 6 | . 6 . . . Terrain Rammed . | . . . . . Walls Destroyed . | . . . . . Machines Disabled . | . . . . . Actions | -11 -10 -10 -10 -9 --------- Run | Yrd Mat Min Exi Min Total 2430 | 25 1140 703 380 182 Wait 217 | . 115 98 . 4 Move 2066 | 15 912 600 374 165 Hop . | . . . . . Pick Up 28 | . 25 . 3 . Fast Attach 3 | 1 2 . . . Attach 7 | . 3 . . 4 Detach . | . . . . . Swap 12 | 1 11 . . . Drop 14 | 2 9 . 3 . Fire 82 | 6 63 5 . 8 Melee . | . . . . . Ram . | . . . . . Kick . | . . . . . Crush 1 | . . . . 1 Escape Stasis . | . . . . . Rewire . | . . . . . Trap . | . . . . . Miscellaneous . | . . . . . Route ------- -11/Scrapyard -10/Materials (discovered 5 exits: [*Mat x3] / [*Min x2]) -10/Mines (discovered 3 exits: [*Mat x2] / *Exi) -10/Exiles (discovered 2 exits: *Min x2) -9/Mines (discovered 1 exit: [*Mat]) History --------- Turn | Location | Event 1 | -11/Scrapyard | Discovered new exit (range 3) 42 | -11/Scrapyard | Entered Materials 257 | -10/Materials | Discovered new exit (range 12) 308 | -10/Materials | Build established: Mutant 497 | -10/Materials | Discovered new exit (range 13) 1237 | -10/Materials | Discovered new exit (range 15) 1555 | -10/Materials | Discovered new exit (range 13) 1987 | -10/Materials | Repaired Lgt. Treads 2129 | -10/Materials | Discovered new exit (range 8) 2724 | -10/Materials | Entered Mines 3834 | -10/Mines | Discovered new exit (range 3) 3878 | -10/Mines | Deemed a non-threat by the Exiles lab entrance 3878 | -10/Mines | Discovered new exit (range 5) 3930 | -10/Mines | Discovered new exit (range 9) 4755 | -10/Mines | Entered Exiles 4756 | -10/Exiles | Identified exit to Mines 4877 | -10/Exiles | Met 8R-AWN 4922 | -10/Exiles | Met EX-HEX 5018 | -10/Exiles | Met EX-BIN 5059 | -10/Exiles | Aligned with FarCom system 5063 | -10/Exiles | Given EX-Vault access code 5229 | -10/Exiles | Opened EX-Vault 5246 | -10/Exiles | Found Longsword +1 5314 | -10/Exiles | Warned to stay clear of 0b10 Research branches 5400 | -10/Exiles | Met EX-DEC 5413 | -10/Exiles | Learned location of Zion (-7) 5956 | -10/Exiles | Left Exiles lab with Longsword +1 5956 | -10/Exiles | Entered Mines 6030 | -9/Mines | Discovered new exit (range 5) 6072 | -9/Mines | Assisted by bots powering up and referring to "LRC-V3" 6473 | -9/Mines | Assembled infested the area 6496 | -9/Mines | Core integrity fell below 50% 6509 | -9/Mines | Core integrity fell below 20% 6514 | -9/Mines | Destroyed by as-42647 with Assembled Heavy Rifle Last Messages --------------- 06499_ U-05 Engineer lays Concrete. 06499_ Autogun destroyed. 06500_ as-93787 destroyed. 06500_ D-53 Grenadier destroyed. 06501_ The unstable cave ceiling collapses. 06501_ ALERT: Construction progress impeded, dispatching reinforcements to local area. 06501_ Lgt. Treads destroyed. 06503_ Grenade Launcher destroyed. 06504_ The unstable cave ceiling collapses. 06505_ Ion Engine destroyed. 06505_ R-06 Scavenger collects Aluminum Leg. 06507_ as-38012 destroyed. 06509_ The unstable cave ceiling collapses. 06510_ Autogun destroyed. 06512_ as-34101 destroyed. 06513_ Ion Engine destroyed. 06513_ as-81006 destroyed. 06513_ as-57496 destroyed. 06514_ D-53 Grenadier destroyed. Map ----- +----------------------------------------------------+ | ?????????????????????????????????????????????????? | | ?????????????????????????????????????????????????? | | ?????????????????????????????????????????????????? | | ?????????????????????????????????????????????????? | | ?????????????????????????????????????????????????? | | ?????????????????????????????????????????????????? | | ?????????????????????????????????????????????????? | | ?????????????????????????????????????????????????? | | ?????????????????????????????????????????????????? | | ?????????????????????????????????????????????????? | | ??????????????????????????? ?????????????????????? | | ??????????????????????????? #???????????????????? | | ??????????????????????????? #???????????????????? | | ??????????????????????????# ##??????????????????? | | ????????????????????????? = ??????????????????? | | ????????????????????????? !% #??????????????????? | | ????????????????????????? aa #???####???????????? | | ?????????????????????????? a ##?# ??????????? | | ?????????????????###?????? ## ??????????? | | ?????????????????? ????? ??????????? | | ???????????????????# ####% a ???# ?????? | | ???????????????????# # ""?? ?????? | | ???????????????????# """ ????? | | ????????????????#### # """ ????? | | ????????????????# ## #?????? | | ????????????????# @ # #??????? | | ????????????????# ### # #???????? | | ????????????????????# r [%* #????????? | | ????????????????????## != #?????????? | | ?????????????????????## ##?????????? | | ??????????????????????### # #??????????? | | ?????????s??????????????## a = #?????????? | | ?????????ss???????????????### % #?????????? | | ????????????????????????????? % #???###### | | ######???????????????????????? # ##??## # | | #???????????????????????? # #### | | #### #?????????????????????????## ## | | ???# #??????????????????????????##u # | | ???# ######??????????????????????# #? | | ???# #?????????????#####????# ##? | | ???###### #?????????????# g #????# ##?? | | ????????# #?????????????# g ##???# ##?## | | ????????# #????????????## ##??# #### ###### | | ????????# #???????????## #### #??# #?## | | ????????# ############# < #??# ### # | | ????????# % ######??# # | | ????????############# ##???????# # | | ????????????????????# ###????????###### ## | | ????????????????????## ##???????????????#####? | | ?????????????????????## ##?????????????????????? | +----------------------------------------------------+ Best States ------------- Heat Dissipation 25 Energy Generation 10 Energy Capacity 250 Matter Stores 300 Matter Capacity 300 Sight Range 16 Terrain Scan Range 16 Terrain Scan Density 10 Armor Coverage 150 Core Shielding 20 Evasion (%) 55 Recoil Reduction 2 Item Schematics ----------------- Huge Storage Unit | -10/Materials | Hacked Lrg. Storage Unit | -10/Materials | Hacked Robot Schematics ------------------ None Fabricated ------------ Nothing Alien Tech Used ----------------- None Achievements -------------- None Challenges ------------ None Game ------ Seed TimingProjectionSuit Manual? 0 Play Time 00:21:11 Cumulative 135.7 hours Start 2024.09.21 @ 01:33:05 End 2024.09.21 @ 01:54:43 Sessions 1 Manual Loads 0 Difficulty Rogue Special Mode None Game No. 185 Rogue 185 Adventurer 0 Explorer 0 Win Type - Total 1 Types 1/0/0/0/0/0/0/0/0 Lore% 46 Gallery% 60 Achievement% 47 Wizard Run 0 Options --------- Layout 0 ASCII 0 Keyboard 0 Movement Mouse Keybinds 1 Fullscreen 1 Font 18/TerminusBold Map View 76x50 Zoom Use 0% Tactical HUD 1 Map Filters NONE Filters NONE Steam 1 RUN: 129210cf-6e50-47cd-bf54-995fc7f940d4